{"text_format":"1","workbook":"xlsx","n_sheets":3,"sheets":["Sheet1","Sheet2","Sheet3"],"not_rendered":{"charts":0,"images":0,"macros":1,"external_links":0,"defined_names":0,"comments":0,"pivot_tables":0},"unopened":[],"bounds":{"document_bytes":16777216,"sheet_cells":100000,"rows_first":2000,"rows_last":500,"rows_between":2000,"halvings":0,"cell_chars":16384,"cell_head_chars":4096},"cells_cut":0,"cells_raw":0,"read":"whole","date_system":"1900"}

{"sheet":"Sheet1","index":0,"n_rows":50,"n_cols":26,"rows_kept":50,"cut":false,"hidden":false,"merged":[[1,14,1,17],[1,23,2,24],[1,25,2,25],[0,18,3,18],[0,2,0,4],[0,5,0,6],[0,7,0,9],[0,10,0,13],[0,14,0,17],[0,19,3,19],[1,2,1,4],[1,5,1,6],[1,7,1,9],[1,10,1,13]]}
[null,null,"الثلاثاء",null,null,"الأربعاء",null,"الخميس",null,null,"الثلاثاء",null,null,null,"الأربعاء",null,null,null,"عدد مرات الدخول","ملاحظات"]
[null,null,"2024-01-02",null,null,"2024-01-03",null,"2024-01-04",null,null,"2024-01-09",null,null,null,"2024-01-10",null,null,null,null,null,null,null,null,"البحث عن ملاحظ",null,"حسين"]
[null,null,"ف1","ف1","ف2","ف1","ف1","ف1","ف2","ف1","ف1","ف2","ف1","ف2","ف1","ف2","ف1","ف2"]
["اسم الملاحظ","اللجنة","4و5",6,6,"4و5",6,"4و5","4و5",6,"4و5","4و5",6,6,"4و5","4و5",6,6]
["محمود",1,"أحلام","حسن","عبدالرحمن","كريم","رمضان","سها","مها","خالد","عبدالعليم","رضا","شحاته","عبدالجواد","نوال","مروة","سارة","سعاد",{"$f":"COUNTIF($C$5:$R$26,A5)","v":7}]
["سها",1,"حسن","أمانى ","ندي","عبدالرحمن","كريم","سوزان","رمضان","مها","نوال","علا","عبدالجواد","أحلام","سارة","شحاته","علياء","عبدالعليم",{"$f":"COUNTIF($C$5:$R$26,A6)","v":11}]
["محمد",2,"حسين","عبدالله","نوال","خالد","شحاته","رزان","عبدالرحمن","سارة","محمود","شيماء","ندي","طه","رضا","كريمان","مها","سها",9]
["حسين",2,"سعاد","محمد","سوزان","هشام","سوسن","رضا","شحاته","شيماء","عبدالجواد","طه","أمانى ","عبدالله","نيرمين","عبدالعليم","أميرة ","حسن",9]
["أمانى ",3,"عبدالجواد","شيماء","حسين","علياء","ندي","عبدالله","كريمان","سوسن","أحلام","حسن","نيرمين","مها","هشام","سارة","عبدالعليم","علا",10]
["أميرة ",3,"عبدالله","نوال","نيرمين","ندي","سعاد","حسين","محمود","كريم","مروة","هشام","كريمان","سها","مها","شيماء","شحاته","أمانى ",8]
["سوسن",4,"شحاته","كريمان","سوسن","رضا","مها","أميرة ","شيماء","حسن","ندي","مروان","سارة","هشام","علا","رزان","طه","مروة",9]
["علا",4,"عبدالمتولي","هشام","سارة","رمضان","حسن","مروة","عبدالعليم","رضا","علياء","نيرمين","علا","محمد","خالد","أمانى ","سها","أحلام",10]
["علياء",5,"عبدالرحمن","مها","رضا","نيرمين","سوزان","شحاته","أحلام","رزان","سارة","نوال","أميرة ","كريمان","أمانى ","علياء","محمد","شيماء",9]
["مها",5,"هشام","خالد","كريم","طه","أميرة ","شيماء","عبدالجواد","عبدالله","محمد","أحلام","سوسن","مروة","سها","نيرمين","ندي","مها",13]
["مروة",6,"أميرة ","سارة","مها","علا","طه","أمانى ","نوال","عبدالجواد","هشام","علياء","خالد","عبدالمتولي","سوزان","سعاد","كريمان","نيرمين",9]
["سعاد",6,"نوال","أحلام","رزان","محمد","سارة","رمضان","سوسن","عبدالعليم","سعاد","أمانى ","عبدالرحمن","نيرمين","حسن","مها","عبدالجواد","عبدالله",11]
["نوال",7,"سوزان","علياء","عبدالمتولي","حسين","رضا","كريم","نيرمين","علا","أمانى ","سوسن","عبدالعليم","مروان","سعاد","محمود","عبدالله","عبدالرحمن",11]
["كريم",7,"مها","عبدالرحمن","كريمان","حسن","رزان","سعاد","علا","أمانى ","كريم","سوزان","شيماء","رمضان","مروان","عبدالجواد","مروة","ندي",10]
["رمضان",8,"كريم","عبدالعليم","طه","شيماء","محمد","سارة","هشام","عبدالمتولي","حسين","رزان","سها","عبدالرحمن","كريمان","ندي","رمضان","مروان",11]
["سارة",8,"سارة","عبدالجواد","مروان","سعاد","علياء","أحلام","ندي","نيرمين","رمضان","مروة","مها","شحاته","أميرة ","محمد","رزان","هشام",13]
["كريمان",9,"شيماء","ندي","محمود","عبدالجواد","كريمان","مها","رزان","أحلام","طه","حسين","كريم","علا","رمضان","هشام","عبدالمتولي","علياء",11]
["خالد",9,"رمضان","عبدالمتولي","عبدالعليم","أحلام","شيماء","طه","كريم","كريمان","رضا","محمود","علياء","خالد","حسين","سها","مروان","شحاته",9]
["سوزان",10,"سها","رزان","سعاد","سارة","عبدالعليم","عبدالمتولي","محمد","سوزان","حسن","عبدالجواد","رمضان","أميرة ","عبدالرحمن","حسين","نوال","سوسن",9]
["مها",10,"خالد","سها","عبدالله","عبدالمتولي","محمود","كريمان","مروة","نوال","عبدالرحمن","سعاد","هشام","عبدالعليم","عبدالجواد","مروان","حسين","رمضان",13]
["رزان",11,"رضا","علا","محمد","رزان","سها","سوسن","أميرة ","طه","شحاته","سارة","نوال","سوزان","عبدالمتولي","كريم","خالد","محمود",10]
["عبدالله",11,"مروان","سوزان","مروة","سوسن","أمانى ","هشام","سها","سعاد","عبدالمتولي","خالد","حسن","شيماء","عبدالله","علا","أحلام","نوال",9]
["رضا",null,null,null,null,null,null,null,null,null,null,null,null,null,null,null,null,null,9]
["هشام",null,null,null,null,null,null,null,null,null,null,null,null,null,null,null,null,null,12]
["طه",null,null,null,null,null,null,null,null,null,null,null,null,null,null,null,null,null,9]
["حسن",null,null,null,null,null,null,null,null,null,null,null,null,null,null,null,null,null,10]
["شيماء",null,null,null,null,null,null,null,null,null,null,null,null,null,null,null,null,null,12]
["عبدالرحمن",null,null,null,null,null,null,null,null,null,null,null,null,null,null,null,null,null,10]
["عبدالعليم",null,null,null,null,null,null,null,null,null,null,null,null,null,null,null,null,null,11]
["عبدالمتولي",null,null,null,null,null,null,null,null,null,null,null,null,null,null,null,null,null,10]
["شحاته",null,null,null,null,null,null,null,null,null,null,null,null,null,null,null,null,null,10]
["عبدالجواد",null,null,null,null,null,null,null,null,null,null,null,null,null,null,null,null,null,12]
["ندي",null,null,null,null,null,null,null,null,null,null,null,null,null,null,null,null,null,10]
["سارة",null,null,null,null,null,null,null,null,null,null,null,null,null,null,null,null,null,13]
["أحلام",null,null,null,null,null,null,null,null,null,null,null,null,null,null,null,null,null,11]
["مروان",null,null,null,null,null,null,null,null,null,null,null,null,null,null,null,null,null,8]
["نيرمين",null,null,null,null,null,null,null,null,null,null,null,null,null,null,null,null,null,10]
[null,null,null,null,null,null,null,null,null,null,null,null,null,null,null,null,null,null,0]
[null,null,null,null,null,null,null,null,null,null,null,null,null,null,null,null,null,null,0]
[null,null,null,null,null,null,null,null,null,null,null,null,null,null,null,null,null,null,0]
[null,null,null,null,null,null,null,null,null,null,null,null,null,null,null,null,null,null,0]
[null,null,null,null,null,null,null,null,null,null,null,null,null,null,null,null,null,null,0]
[null,null,null,null,null,null,null,null,null,null,null,null,null,null,null,null,null,null,0]
[null,null,null,null,null,null,null,null,null,null,null,null,null,null,null,null,null,null,0]
[null,null,null,null,null,null,null,null,null,null,null,null,null,null,null,null,null,null,0]
[null,null,null,null,null,null,null,null,null,null,null,null,null,null,null,null,null,null,0]

{"sheet":"Sheet2","index":1,"n_rows":0,"n_cols":0,"rows_kept":0,"cut":false,"hidden":false,"merged":[]}

{"sheet":"Sheet3","index":2,"n_rows":0,"n_cols":0,"rows_kept":0,"cut":false,"hidden":false,"merged":[]}